fUSD/lending_fUSD_20240918
["ID","MTS","AMOUNT","RATE_DAILY","PERIOD"]
[338429096,1726632640657,-150.0,0.00014456,2]
[338429098,1726632640671,-150.0,0.00014463,2]
[338429101,1726632640683,-150.0,0.00014464,2]
[338429103,1726632640695,-150.0,0.00014474,2]
[338429105,1726632640709,-1500.0,0.00014475,2]
[338429107,1726632640721,-150.0,0.00014487,2]
[338429109,1726632640733,-150.0,0.00014489,2]
[338429112,1726632640746,-150.0,0.0001449,2]
[338429114,1726632640758,-345.04168563,0.0001449,2]
[338429116,1726632640771,-169.90180674,0.0001449,2]
[338429118,1726632640783,-185.7454158,0.0001449,2]
[338429120,1726632640796,-150.0,0.00014491,2]
[338429121,1726632640808,-169.90180674,0.00014492,2]
[338429122,1726632640821,-166.73121049,0.00014493,2]
[338429123,1726632640834,-150.0,0.00014494,2]
[338429124,1726632640848,-169.90180674,0.00014494,2]
[338429125,1726632640860,-169.90180674,0.00014496,2]
[338429126,1726632640873,-169.90180674,0.00014498,2]
[338429127,1726632640887,-7500.0,0.000145,2]
[338429128,1726632640900,-30000.0,0.000145,2]
[338429129,1726632640913,-2569.3,0.000145,2]
[338429130,1726632640927,-2579.41768,0.000145,2]
[338429131,1726632640939,-1806.7539992,0.000145,2]
[338429133,1726632640952,-5800.0,0.000145,2]
[338429135,1726632640964,-159.85984811,0.000145,2]
[338429137,1726632640977,-172.71402784,0.000145,2]
[338429139,1726632640989,-400.0,0.000145,2]
[338429142,1726632641002,-350.0,0.000145,3]
[338429144,1726632641015,-412.3736507,0.000145,2]
[338429146,1726632641029,-185.74541579,0.000145,2]
[338429148,1726632641042,-169.90180674,0.000145,2]
[338429151,1726632641054,-232.48887692,0.00014509,2]
[338429153,1726632641068,-12391.12246387,0.00014511,2]
[338429155,1726632641081,-1500.0,0.00014512,2]
[338429158,1726632641093,-488.111,0.00014513,2]
[338429160,1726632641106,-239.261,0.00014513,2]
[338429162,1726632641119,-277.66516976,0.00014515,2]
[338429165,1726632641139,-150.0,0.00014516,2]
[338429167,1726632641152,-1000.0,0.00014521,2]
[338429169,1726632641165,-497.012382,0.00014521,2]
[338429171,1726632641178,-150.0,0.00014521,2]
[338429174,1726632641191,-1500.0,0.00014526,2]
[338429176,1726632641204,-151.83977043,0.00014527,2]
[338429178,1726632641215,-150.0,0.0001453,2]
[338429180,1726632641228,-1500.0,0.00014531,2]
[338429182,1726632641239,-150.0,0.00014532,2]
[338429184,1726632641252,-150.0,0.00014534,2]
[338429187,1726632641276,-150.0,0.00014539,2]
[338429189,1726632641289,-150.0,0.00014541,2]
[338429192,1726632641301,-150.0,0.00014542,2]
[338429194,1726632641313,-150.0,0.00014544,2]
[338429196,1726632641325,-1500.0,0.0001455,2]
[338429199,1726632641338,-150.0,0.00014551,2]
[338429201,1726632641350,-150.0,0.00014561,2]
[338429203,1726632641363,-150.0,0.00014562,2]
[338429205,1726632641375,-150.0,0.00014563,2]
[338429207,1726632641387,-150.0,0.00014565,2]
[338429210,1726632641399,-12391.12246387,0.00014567,2]
[338429212,1726632641412,-503.57687918,0.00014573,2]
[338429214,1726632641424,-150.0,0.00014574,2]
[338429216,1726632641436,-578.54695556,0.00014578,2]
[338429218,1726632641449,-157.28,0.0001458,2]
[338429220,1726632641461,-172.71402781,0.0001458,2]
[338429222,1726632641474,-150.0,0.00014583,2]
[338429224,1726632641487,-150.0,0.00014583,2]
[338429227,1726632641498,-150.0,0.00014588,2]
[338429229,1726632641511,-150.0,0.00014588,2]
[338429231,1726632641523,-500.0,0.00014589,2]
[338429233,1726632641536,-500.0,0.00014589,2]
[338429236,1726632641549,-544.60167583,0.00014589,2]
[338429238,1726632641562,-500.0,0.00014589,2]
[338429241,1726632641575,-203883.776993,0.0001459,2]
[338429243,1726632641587,-346846.180178,0.0001459,2]
[338429245,1726632641600,-6374.3669438,0.0001459,3]
[338429247,1726632641613,-157.28,0.0001459,2]
[338429249,1726632641628,-150.0,0.00014593,2]
[338429251,1726632641641,-150.0,0.00014594,2]
[338429254,1726632641654,-179.30785591,0.00014599,2]
[338429256,1726632641666,-2291.63,0.00014599,2]
[338429258,1726632641679,-151.19181223,0.00014599,2]
[338429260,1726632641691,-514.0,0.00014599,2]
[338429262,1726632641703,-274.35969896,0.000146,2]
[338429264,1726632641715,-383.67680405,0.000146,2]
[338429266,1726632641727,-32656.04556104,0.000146,2]
[338429269,1726632641739,-192.44762988,0.000146,2]
[338429271,1726632641750,-1022915.88949418,0.000146,2]
[338429273,1726632641766,-3344663.87,0.000146,2]
[338429276,1726632641778,-183612.35675197,0.000146,2]
[338429278,1726632641789,-200.1,0.000146,2]
[338429280,1726632641802,-5253029.74520248,0.000146,2]
[338429283,1726632641820,-422816.604425,0.000146,2]
[338430053,1726632650313,500.0,0.00010764,2]
[338430485,1726632655494,214.63,0.00011846,2]
[338430490,1726632686230,500.0,0.00010764,2]
[338430494,1726632798174,71.37,0.00010906,2]
[338430495,1726632798197,103.52,0.00010906,2]
[338430496,1726633098907,160.55722368,0.00024,120]
[338430497,1726633161112,260.25,0.00011421,2]
[338430498,1726633201379,159.99,0.00010959,2]
[338430499,1726633379202,154.1,0.00010681,2]
[338430500,1726633556093,2131.91,6.94e-05,2]
[338430501,1726633556121,19216.52161065,6.94e-05,2]
[338430503,1726633563163,210.49,0.00010959,2]
[338430504,1726633574294,175.41,0.00010959,2]
[338430505,1726633594995,877.06,0.00010959,2]
[338430507,1726633635060,1820.38709749,0.000163,120]
[338430508,1726633640592,500.0,0.00024,120]
[338430509,1726633650155,154.08317133,0.00024,120]
[338430510,1726633655126,1050.0,0.00011,2]
[338430511,1726633673936,750.03223471,0.0002,120]
[338430512,1726633681884,2000.0,0.00024,120]
[338430513,1726633685246,2023.16875165,0.00024,120]
[338430514,1726633687146,2778.35550799,0.00012,2]
[338430516,1726633704590,276.47,0.00010838,2]
[338430527,1726633831910,-250.0,0.00012716,2]
[338430528,1726633831920,-296.76,0.0001276,2]
[338430529,1726633831929,-1952.71544021,0.000129,2]
[338430530,1726633831958,-396.64994585,0.000129,2]
[338430531,1726633832020,-281.93620347,0.000129,2]
[338430532,1726633832030,-2019.79647202,0.00012998,2]
[338430533,1726633832039,-227.17796398,0.00012999,2]
[338430534,1726633832048,-300.0,0.00012999,2]
[338430535,1726633832058,-150.0,0.00012999,2]
[338430536,1726633832067,-478.19,0.00013,2]
[338430537,1726633832076,-27206.57041468,0.00013,2]
[338430542,1726633835916,158.42,0.00010959,2]
[338430545,1726633838061,-15032.74470291,0.00013,2]
[338430751,1726633840670,-302.805,0.00013,2]
[338431213,1726633846027,-789.84000072,0.00013,2]
[338432205,1726634095094,828.65,0.00012549,2]
[338432206,1726634132053,23900.0,0.0001255,2]
[338432207,1726634211386,291.88,0.00010627,2]
[338432208,1726634231728,1836.48,0.00024,120]
[338432209,1726634245997,414.57,0.00023,60]
[338432212,1726634317143,414.0,0.0001264,2]
[338432213,1726634374058,156.55,0.00010959,2]
[338432214,1726634378324,250.0,0.00012475,2]
[338432215,1726634476308,1686.5,0.00012518,2]
[338432216,1726634497394,590.02,0.00012621,2]
[338432217,1726634580786,964.48,0.00012569,2]
[338432218,1726634655728,288.62,0.00012372,2]
[338432219,1726634666243,1526.84,0.00024,120]
[338432220,1726634677589,8102.44,0.00012372,2]
[338432221,1726634692549,763.42,0.00024,120]
[338432222,1726634719974,763.42,0.00024,120]
[338432223,1726634748054,1344.8111,0.00012598,2]
[338432224,1726634780492,303.59,0.00010454,2]
[338432225,1726634783528,1000.0,0.00012359,2]
[338432226,1726634793805,375.92,0.00012395,2]
[338432228,1726634899508,1000.0,0.00024,120]
[338432235,1726634968923,153.44,0.00010959,2]
[338432239,1726635014834,500.0,0.00024,120]
[338432251,1726635032034,-166.14,0.00012697,2]
[338432252,1726635032044,-102.8600005,0.00012718,2]
[338432253,1726635032055,-200.7299995,0.00012718,2]
[338432254,1726635032065,-172.65,0.00012763,2]
[338432255,1726635032074,-150.0,0.00012877,2]
[338432256,1726635032083,-150.0,0.00012899,2]
[338432257,1726635032092,-300.0,0.00012899,2]
[338432258,1726635032102,-500.0,0.000129,2]
[338432259,1726635032111,-1000.0,0.000129,2]
[338432260,1726635032120,-6384.34706187,0.000129,2]
[338432261,1726635032132,-4365.30333813,0.000129,2]
[338432262,1726635032142,-216.488,0.000129,2]
[338432263,1726635032151,-746.44643515,0.000129,2]
[338432264,1726635032162,-415.09721781,0.000129,2]
[338432265,1726635032176,-308.807424,0.000129,2]
[338432266,1726635032191,-5866.344349,0.000129,2]
[338432267,1726635032202,-818.95666546,0.000129,2]
[338432268,1726635032213,-18176.11180858,0.000129,2]
[338432269,1726635032222,-2500.0,0.000129,2]
[338432270,1726635032231,-535.61,0.000129,2]
[338432271,1726635032240,-172.71402781,0.000129,2]
[338432272,1726635032249,-347.62794276,0.000129,2]
[338432273,1726635032259,-2021.2853025,0.000129,2]
[338432274,1726635032269,-902.08075,0.0001295,2]
[338432275,1726635032279,-500.0,0.00012973,2]
[338432276,1726635032288,-150.99,0.00012973,2]
[338432277,1726635032298,-493.15507064,0.00012973,2]
[338432278,1726635032307,-611.91180232,0.00012973,2]
[338432279,1726635032316,-399.87357508,0.00012973,2]
[338432280,1726635032325,-73595.81575018,0.00012986,2]
[338432281,1726635032336,-152.71,0.0001299,2]
[338432282,1726635032345,-500.0,0.00012999,2]
[338432283,1726635032355,-500.0,0.00012999,2]
[338432284,1726635032364,-607.74310861,0.00012999,2]
[338432285,1726635032373,-377813.56587106,0.00013,2]
[338432287,1726635032388,-3006.95450631,0.00013,2]
[338432289,1726635032402,-331.9629089,0.00013,2]
[338432291,1726635032413,-8250.65169538,0.00013,2]
[338432293,1726635032425,-266.95294903,0.00013,2]
[338432296,1726635032436,-8403.01487636,0.00013,2]
[338432298,1726635032454,-710.26876103,0.00013,2]
[338432300,1726635032465,-885.09342961,0.00013,2]
[338432302,1726635032475,-800.07111468,0.00013,2]
[338432309,1726635038023,-564.37954579,0.000129,2]
[338432310,1726635038036,-1073.02095421,0.000129,2]
[338432311,1726635038045,-297.2174495,0.00013,2]
[338432312,1726635038056,-471.83829238,0.00013,2]
[338432313,1726635038067,-2944.34240302,0.00013,2]
[338432314,1726635038078,-9101.3781579,0.00013,2]
[338432315,1726635038090,-8693.51986952,0.00013,2]
[338432316,1726635038101,-1381.24087936,0.00013,2]
[338432317,1726635038128,-31253.03540949,0.00013,2]
[338432318,1726635038140,-33056.34310284,0.00013,2]
[338432319,1726635038167,-1291.67234278,0.00013,2]
[338432323,1726635038356,-0.62493719,0.00013,2]
[338432325,1726635038367,-452.76,0.00013,2]
[338432328,1726635038388,-808455.35496194,0.00013,2]
[338432534,1726635040577,-4439.27591135,0.00013,2]
[338432761,1726635043147,-635.21123001,0.00013,2]
[338432763,1726635043159,-423.97074858,0.00013,2]
[338433806,1726635073823,500.0,0.00024,120]
[338433807,1726635080242,500.0,0.00024,120]
[338433808,1726635087630,500.0,0.00024,120]
[338433809,1726635095801,500.0,0.00024,120]
[338433810,1726635102121,500.0,0.00024,120]
[338433811,1726635108879,500.0,0.00024,120]
[338433812,1726635114587,500.0,0.00024,120]
[338433813,1726635123283,500.0,0.00024,120]
[338433814,1726635140217,500.0,0.00024,120]
[338433815,1726635148003,500.0,0.00024,120]
[338433816,1726635179335,210.0,0.000126,2]
[338433817,1726635179636,210.0,0.0001243,2]
[338433818,1726635179993,210.0,0.0001226,2]
[338433819,1726635180660,210.0,0.0001209,2]
[338433820,1726635180782,210.0,0.0001191,2]
[338433821,1726635180974,210.0,0.0001174,2]
[338433822,1726635184653,2574.80061966,0.00024,120]
[338433825,1726635304569,5691.0,0.00024,120]
[338433826,1726635314987,200.0,0.00012482,2]
[338433829,1726635371732,288.62,0.00012482,2]
[338433830,1726635385215,273.23,0.00010564,2]
[338433831,1726635458593,1050.0,0.00011,2]
[338433832,1726635595530,250.0,0.0001252,2]
[338433839,1726635709842,561.81,0.00012536,2]
[338433840,1726635714630,500.0,0.00024,120]
[338433841,1726635755698,500.0,0.00024,120]
[338433842,1726635820013,1200.0,0.00024,120]
[338433843,1726635833463,840.0,0.00012412,2]
[338433844,1726635854978,344.0,0.00012,2]
[338433845,1726635870048,500.0,0.00024,120]
[338433847,1726635925703,2000.0,0.00024,120]
[338433849,1726635969457,160.35,0.00010959,2]
[338433850,1726636091271,154.1,9.937e-05,2]
[338433851,1726636149768,250.0,0.0001236,2]
[338433852,1726636169113,284.57,0.00010455,2]
[338433853,1726636211774,2000.0,0.00023,60]
[338433854,1726636219318,2008.0,0.00023,60]
[338433868,1726636232639,-284.57,0.00012719,2]
[338433869,1726636232649,-184.84264702,0.00012728,2]
[338433870,1726636232661,-210.0,0.0001277,2]
[338433871,1726636232671,-353.67860659,0.0001277,2]
[338433872,1726636232702,-69.43139341,0.0001277,2]
[338433873,1726636232712,-170.6597,0.0001287,2]
[338433874,1726636232722,-150.0,0.00012899,2]
[338433875,1726636232731,-300.0,0.00012899,2]
[338433876,1726636232741,-1167.0957,0.000129,2]
[338433877,1726636232751,-1210.7973,0.000129,2]
[338433878,1726636232760,-1149.77412499,0.000129,2]
[338433879,1726636232815,-844.63596783,0.000129,2]
[338433880,1726636232883,-295.4294,0.000129,2]
[338433881,1726636232894,-745.31368766,0.000129,2]
[338433883,1726636238464,-3445.54361952,0.000129,2]
[338433884,1726636238473,-160.78836512,0.000129,2]
[338433885,1726636238483,-478.06197736,0.000129,2]
[338433886,1726636238492,-159.85984811,0.000129,2]
[338433887,1726636238501,-174.88666526,0.000129,2]
[338433888,1726636238510,-5859.85952463,0.000129,2]
[338433889,1726636238532,-569.54495549,0.000129,2]
[338434054,1726636240333,-3036.02291444,0.000129,2]
[338434056,1726636240343,-1754.2010597,0.000129,2]
[338434058,1726636240353,-210.0,0.0001294,2]
[338434060,1726636240363,-582.0,0.00012986,2]
[338434062,1726636240372,-6739.83677924,0.00012986,2]
[338434376,1726636243703,-5285.68987205,0.00012986,2]
[338434395,1726636243881,-279.92356222,0.00012986,2]
[338434399,1726636243909,-56076.44893448,0.00012986,2]
[338434401,1726636243921,-500.0,0.00012986,2]
[338434402,1726636243940,-3932.95846468,0.00012986,2]
[338435289,1726636281684,200.0,0.000125,4]
[338435290,1726636283798,500.0,0.000126,4]
[338435291,1726636303413,177.3,0.00012639,2]
[338435292,1726636539723,159.05,0.00010959,2]
[338435293,1726636646480,4685.83,0.000126,2]
[338435294,1726636650112,11665.34,0.00011929,2]
[338435295,1726636653622,250.0,0.00011929,2]
[338435296,1726636683810,278.6,0.00010011,2]
[338435297,1726636684085,278.6,0.00012275,2]
[338435298,1726636897455,150.27,0.00011919,2]
[338435302,1726636978815,672.0,0.00011919,2]
[338435316,1726637101682,156.92,0.00010959,2]
[338435318,1726637119889,2387.28762713,9e-05,2]
[338435319,1726637129181,10044.50683741,0.000101,2]
[338435320,1726637154346,2131.91,6.94e-05,2]
[338435321,1726637238915,250.74,0.00010075,2]
[338435322,1726637239110,250.74,0.00012339,2]
[338435323,1726637263839,1050.0,0.00011,2]
[338435324,1726637274098,250.0,0.00011993,2]
[338435325,1726637301143,163.25041559,0.00023,60]
[338435327,1726637322964,257.7414402,0.0001,2]
[338435347,1726637431377,-150.0,0.00012739,2]
[338435348,1726637431387,-150.0,0.00012744,2]
[338435349,1726637431397,-150.0,0.00012745,2]
[338435350,1726637431406,-150.0,0.00012761,2]
[338435351,1726637431416,-614.4964,0.0001277,2]
[338435352,1726637431426,-150.0,0.00012821,2]
[338435353,1726637431435,-150.0,0.00012828,2]
[338435354,1726637431445,-208.07261695,0.00012843,2]
[338435355,1726637431454,-150.0,0.00012845,2]
[338435356,1726637431464,-150.0,0.0001285,2]
[338435357,1726637431473,-893.95038,0.0001286,2]
[338435358,1726637431483,-328.0,0.00012864,2]
[338435359,1726637431492,-150.0,0.00012866,2]
[338435360,1726637431501,-22.36060305,0.00012869,2]
[338435361,1726637431513,-277.63939695,0.00012869,2]
[338435362,1726637431522,-150.0,0.00012869,2]
[338435363,1726637431532,-1486.39954599,0.0001287,2]
[338435364,1726637431543,-538.29120614,0.0001287,2]
[338435365,1726637431566,-320.66312088,0.0001287,2]
[338435366,1726637431577,-1200.0,0.0001287,2]
[338435367,1726637431628,-359.16532702,0.0001287,2]
[338435368,1726637431740,-2622.37071056,0.0001287,2]
[338435369,1726637431759,-16707.41431585,0.0001287,2]
[338435370,1726637431770,-4458.95684898,0.0001287,2]
[338435373,1726637437404,-5355.93660022,0.0001287,2]
[338435374,1726637437416,-11457.98861085,0.0001287,2]
[338435375,1726637437579,-457.2,0.0001287,2]
[338435516,1726637439387,-266.56,0.0001287,2]
[338435519,1726637439447,-586.23003651,0.0001287,2]
[338435521,1726637439459,-4535.48788719,0.0001287,2]
[338436081,1726637445853,-1580.25000003,0.00012799,2]
[338436793,1726637468850,300.0,0.000124,4]
[338436794,1726637470867,600.0,0.000125,4]
[338436795,1726637472956,1000.0,0.000126,4]
[338436796,1726637479318,462.4,0.00012226,2]
[338436797,1726637521478,-445.28371662,0.000127,4]
[338436798,1726637521842,-445.28371663,0.000127,4]
[338436799,1726637521952,-409.43256675,0.000127,4]
[338436800,1726637621605,449.44,0.00012219,2]
[338436801,1726637628319,153.03,0.00010959,2]
[338436803,1726637793222,250.0,0.00012157,2]
[338436804,1726637977246,630.08,0.00012169,2]
[338436805,1726638108927,197.5804998,0.00010266,2]
[338436806,1726638108955,69.7595002,0.00010266,2]
[338436807,1726638109150,267.34,0.0001253,2]
[338436808,1726638138233,177.3,0.00012155,2]
[338436809,1726638264558,153.44,0.00010959,2]
[338436810,1726638323134,250.0,0.00012166,2]
[338436813,1726638384586,1171.72356635,0.0001,2]
[338436814,1726638384613,622.25494971,0.0001,2]
[338436815,1726638412821,150.0,0.00012685,2]
[338436816,1726638459056,150.0,0.00012628,2]
[338436821,1726638531413,9631.64,0.00023,60]
[338436822,1726638541500,495.93,0.00012182,2]
[338436835,1726638631609,-150.0,0.00012736,2]
[338436836,1726638631618,-498.12882621,0.0001274,2]
[338436837,1726638631763,-246.82982379,0.0001274,2]
[338436838,1726638631773,-544.586,0.000128,2]
[338436839,1726638631782,-173.19,0.000128,2]
[338436840,1726638631792,-1135.39417621,0.00012812,2]
[338436841,1726638631803,-332.54215457,0.00012812,2]
[338436842,1726638631812,-150.0,0.00012831,2]
[338436843,1726638631822,-8637.43494543,0.0001287,2]
[338436844,1726638631835,-2727.3619961,0.0001287,2]
[338436845,1726638631886,-10371.38293521,0.0001287,2]
[338436846,1726638631897,-12431.42241332,0.0001287,2]
[338436847,1726638631907,-150.0,0.00012891,2]
[338436849,1726638631916,-150.0,0.00012898,2]
[338436851,1726638631926,-170.2108,0.00012899,2]
[338436853,1726638631936,-382.44958188,0.000129,2]
[338436855,1726638631945,-179.99,0.000129,2]
[338436856,1726638631955,-2999.5762819,0.00012985,2]
[338436857,1726638631964,-35233.0,0.00012986,2]
[338436858,1726638631973,-313.0,0.00012986,2]
[338436859,1726638631983,-222.3773,0.00012986,2]
[338436860,1726638631993,-152.85,0.00012989,2]
[338436861,1726638632003,-178.63812318,0.00012998,2]
[338436862,1726638632012,-585.2690751,0.00012998,2]
[338436863,1726638632022,-48846.28748061,0.00012999,2]
[338436864,1726638632053,-1450.0,0.00012999,2]
[338436865,1726638632065,-528.39973584,0.00012999,2]
[338436866,1726638632077,-287.25129197,0.00012999,2]
[338436867,1726638632088,-397.7418011,0.00012999,2]
[338436868,1726638632099,-1029.07753147,0.00012999,2]
[338436869,1726638632110,-4112.41419219,0.00012999,2]
[338436870,1726638632121,-8971.18423279,0.00012999,2]
[338436871,1726638632152,-641.43342479,0.00012999,2]
[338436872,1726638632164,-881.08675534,0.00012999,2]
[338436873,1726638632175,-1001.04060333,0.00012999,2]
[338436876,1726638637716,-2930.9,0.00012999,2]
[338436877,1726638637727,-5686.33463656,0.00012999,2]
[338436878,1726638637738,-1929.91963486,0.00012999,2]
[338436879,1726638637872,-347.62794275,0.00012899,2]
[338436880,1726638637882,-2180.02466701,0.00012999,2]
[338436916,1726638639660,-844.80669448,0.00012999,2]
[338436917,1726638639674,-760.11591725,0.00012999,2]
[338436918,1726638639686,-401.71205352,0.00012999,2]
[338436919,1726638639697,-3333.99104239,0.00012999,2]
[338436920,1726638639709,-39212.85223734,0.00012999,2]
[338436921,1726638639720,-5515.95915573,0.00012999,2]
[338436922,1726638639732,-2361.64028399,0.00012999,2]
[338436923,1726638639748,-370.65945393,0.00012999,2]
[338436946,1726638640285,-196012.02711561,0.00012999,2]
[338436948,1726638640297,-588.2445,0.00012999,2]
[338436950,1726638640309,-5220.68877439,0.00012999,2]
[338436952,1726638640321,-431.39001,0.00012999,2]
[338436955,1726638640337,-964.35546878,0.00012999,2]
[338436957,1726638640348,-281.186742,0.00012999,2]
[338436959,1726638640364,-3500.0,0.00012999,2]
[338436961,1726638640375,-5198.16634652,0.00012999,2]
[338436963,1726638640386,-505.2624392,0.00012999,2]
[338436965,1726638640397,-752.06647049,0.00012999,2]
[338436968,1726638640410,-1600.65,0.00012999,2]
[338436970,1726638640423,-31971.56757775,0.00012999,2]
[338437176,1726638642615,-1169.46737312,0.000129,2]
[338437178,1726638642627,-174.88666523,0.000129,2]
[338437181,1726638642637,-234.27443147,0.00012999,2]
[338437193,1726638642754,-7832.58094494,0.00012999,2]
[338437195,1726638642769,-490.45,0.00012999,2]
[338437209,1726638642915,-10617.27147713,0.00012999,2]
[338437211,1726638642928,-11863.31270289,0.00012999,2]
[338437213,1726638642940,-382.61135269,0.00012999,2]
[338437224,1726638643051,-589.40692142,0.00012999,2]
[338437275,1726638643533,-559.0032825,0.00012999,2]
[338437484,1726638645699,-1919.57705919,0.00012999,2]
[338437487,1726638645711,-431.9407045,0.00012999,2]
[338437490,1726638645723,-6046.38017579,0.00012999,2]
[338437492,1726638645735,-585.71,0.00012999,2]
[338437495,1726638645755,-1185.57,0.00012999,2]
[338437497,1726638645768,-1034.05360558,0.00012999,2]
[338437500,1726638645784,-1246.62853279,0.00012999,2]
[338437502,1726638645796,-4919.07120143,0.00012999,2]
[338437504,1726638645808,-6772.36392534,0.00012999,2]
[338437506,1726638645819,-453.46218221,0.00012999,2]
[338437508,1726638645831,-740.40033588,0.00012999,2]
[338437510,1726638645842,-250.0,0.00012999,2]
[338437517,1726638645899,-1904.85498398,0.00012999,2]
[338437519,1726638645910,-4056.86937231,0.00012999,2]
[338437521,1726638645921,-552.63393626,0.00012999,2]
[338437523,1726638645933,-729.12371714,0.00012999,2]
[338437525,1726638645944,-939.883994,0.00012999,2]
[338437948,1726638750542,197.98988282,0.00010764,2]
[338437949,1726638884497,250.0,0.00012572,2]
[338437950,1726638930946,160.16,0.00010959,2]
[338437951,1726638934105,279.56,0.00010946,2]
[338437953,1726639048840,246.09,0.00012365,2]
[338437954,1726639067536,1050.0,0.00011,2]
[338437955,1726639232307,1406.16,0.000126,2]
[338437956,1726639281612,359.55,0.00012369,2]
[338437957,1726639393169,250.0,0.00012369,2]
[338437958,1726639472798,283.31,0.00010473,2]
[338437959,1726639523720,23860.0,0.00012358,2]
[338437960,1726639553311,396.75,0.0001241,2]
[338437961,1726639621410,500.0,0.00010764,2]
[338437962,1726639696806,-1109.92952888,0.000127,2]
[338437963,1726639759213,350.07047112,0.000126,2]
[338437964,1726639790787,177.3,0.00012356,2]
[338437970,1726639831751,-283.31,0.00012737,2]
[338437971,1726639831762,-188.13,0.00012864,2]
[338437972,1726639831772,-603.25,0.00012864,2]
[338437973,1726639831783,-441.78244228,0.0001287,2]
[338437974,1726639831795,-508.25382772,0.0001287,2]
[338437975,1726639831805,-175.908,0.00012899,2]
[338437976,1726639831814,-788.80817228,0.00012899,2]
[338437977,1726639831831,-718.60973769,0.00012899,2]
[338437978,1726639831912,-472.09939003,0.00012899,2]
[338437979,1726639831922,-538.242,0.00012899,2]
[338437980,1726639831932,-150.0,0.00012899,2]
[338437981,1726639831941,-357.0158,0.000129,2]
[338437982,1726639831951,-1672.1412411,0.000129,2]
[338437983,1726639832000,-6131.9641589,0.000129,2]
[338437984,1726639832009,-5524.3293,0.000129,2]
[338437985,1726639832019,-213.5495,0.000129,2]
[338437986,1726639832028,-425.47515984,0.000129,2]
[338437987,1726639832038,-2741.6223,0.000129,2]
[338437988,1726639832047,-202.86803188,0.000129,2]
[338437989,1726639832056,-8629.28551426,0.000129,2]
[338437990,1726639832066,-6397.0944412,0.000129,2]
[338437991,1726639832075,-180.05783861,0.000129,2]
[338437992,1726639832085,-152.93,0.0001299,2]
[338437993,1726639832095,-286.17813824,0.00012998,2]
[338437994,1726639832105,-3170.50828265,0.00012998,2]
[338437995,1726639832116,-41348.19495434,0.00012999,2]
[338437996,1726639832125,-564.0,0.00013,2]
[338437997,1726639832136,-74985.7096519,0.00013,2]
[338437999,1726639832147,-3065.28778418,0.00013,2]
[338438002,1726639832166,-456.33428005,0.00013,2]
[338438003,1726639837801,-649.07179582,0.00013,2]
[338438004,1726639837813,-1305.81,0.00013,2]
[338438005,1726639837824,-290.05204157,0.00013,2]
[338438006,1726639837847,-420449.21406439,0.00013,2]
[338438007,1726639837857,-59111.64406223,0.00013,2]
[338438008,1726639837871,-1700.0,0.00013,2]
[338438009,1726639837883,-897.58477711,0.00013,2]
[338438010,1726639837894,-2756.36521699,0.00013,2]
[338438011,1726639838033,-442.25,0.00013,2]
[338438012,1726639838045,-755.95142476,0.00013,2]
[338438013,1726639838056,-771.26757877,0.00013,2]
[338438014,1726639838086,-4753.97115174,0.00013,2]